[Event "German Bundesliga 2024-25"]
[Site "Germany"]
[Date "2024.10.06"]
[Round "2.8"]
[White "Koellner, Ruben Gideon"]
[Black "Rafiee, Makan"]
[Result "1-0"]
[Annotator "TA"]
[ECO "A43"]
[WhiteElo "2480"]
[BlackElo "2285"]
[PlyCount "57"]
[EventDate "2024.09.27"]
[EventType "team-tourn"]
[EventCountry "GER"]
[SourceTitle "playchess.com"]
[Source "ChessBase"]
[SourceQuality "1"]
[WhiteTeam "Deizisau"]
[BlackTeam "Bayern Muenchen"]
[TimeControl "40/5400+30:1800+30"]

{[%evp 9,57,47,78,47,66,59,81,74,83,66,83,58,48,66,62,61,81,69,106,107,115,83,135,124,119,118,117,116,136,89,138,148,197,190,184,202,212,200,246,264,534,531,590,573,945,945,945,945,940,915]} 1. d4 {[%emt 0:00:08]} c5 {[%emt 0:00:08]} 2. d5 {[%emt 0:00:10]} g6 {[%emt 0:00:07]} 3. e4 {[%emt 0:00:13]} Bg7 {[%emt 0:00:09]} 4. Nc3 {[%emt 0:00:34]} d6 {[%emt 0:00:08]} 5. Nf3 {[%emt 0:00:27]} Bg4 {[%emt 0:02:45]} 6. Be2 {[%emt 0:00:31]} Bxf3 {[%emt 0:00:10]} 7. Bxf3 {[%emt 0:00:05]} (7. gxf3 $6 Nd7 $11) 7... Nf6 {[%emt 0:00:20]} 8. O-O {[%emt 0:00:19] White is better.} O-O {[%emt 0:00:06]} 9. Be2 {[%emt 0:00:50]} Na6 {[%emt 0:02:34]} 10. Bc4 {[%emt 0:05:12]} Nc7 {[%emt 0:00:19]} 11. a4 {[%emt 0:00:19]} a6 {[%emt 0:01:41]} 12. Qe2 {[%emt 0:03:27]} Rb8 {[%emt 0:03:09] Black is on the road to losing.} 13. a5 {[%emt 0:00:44] White is more active.} b5 {[%emt 0:05:52]} 14. axb6 {[%emt 0:00:17]} Rxb6 {[%emt 0:00:05]} 15. Ra2 {[%emt 0:02:09]} (15. Bxa6 $2 {is the wrong capture.} Qa8 16. e5 dxe5 $19 (16... Rxa6 17. Rxa6 Qxa6 18. Qxa6 $17) (16... Nfxd5 17. Nxd5 Qxd5 18. exd6 $15) (16... Nxa6 17. exf6 Bxf6 18. Ne4 $16)) 15... Nb5 {[%emt 0:02:56]} 16. Nxb5 $16 {[%emt 0:05:58]} axb5 {[%emt 0:00:10]} 17. Bxb5 {[%emt 0:00:11]} Nxe4 {[%emt 0:02:27]} 18. Bc6 {[%emt 0:00:28] This pair of bishops is nice.} Nf6 {[%emt 0:14:39][%cal Be4f6,Bf6e4,Be4c3,Bc3e2][%mdl 32]} 19. Bd2 {[%emt 0:00:18]} ({Better is} 19. Ra7) 19... Qb8 {[%emt 0:10:41]} ({Black should play} 19... Qc8) 20. Qxe7 {[%emt 0:17:31] Bf4 would now be deadly.} Rxb2 {[%emt 0:02:54]} (20... Qc8 $16 {was necessary.} 21. Ra8 (21. Qxd6 Nxd5 22. Qxd5 Rxc6 $16) 21... Qxa8 22. Bxa8 Rxa8) 21. Ra8 $36 {[%emt 0:00:30][%mdl 2048] White has strong initiative.} Qxa8 {[%emt 0:00:23]} 22. Bxa8 {[%emt 0:00:07]} Rxa8 {[%emt 0:00:03]} 23. Qxd6 {[%emt 0:01:16]} Ne4 {[%emt 0:05:21]} 24. Qc6 {[%emt 0:02:25]} Rd8 {[%emt 0:00:51]} (24... Rba2 {was worth a try.} 25. Bc1 R2a6) 25. Ba5 {[%emt 0:02:32] White is clearly winning.} Rdb8 {[%emt 0:03:39]} 26. d6 {[%emt 0:00:38]} Nc3 {[%emt 0:00:45]} 27. d7 {[%emt 0:05:18] [#] Hoping for Qc8+.} (27. Qxc5 Ne2+ 28. Kh1 Rb1 $16) 27... Ne2+ {[%emt 0:00:29]} 28. Kh1 {[%emt 0:00:05]} Rb1 {[%emt 0:00:14]} 29. d8=Q+ {[%emt 0:00:19] Weighted Error Value: White=0.10 (very precise) /Black=0.58.  Mistake:       	White=1     	Black=4      Inaccurate:     	---       	Black=2      OK:         	White=7     	Black=7      Best:        	White=4     	---} 1-0

[Event "German Bundesliga 2024-25"]
[Site "Germany"]
[Date "2024.10.06"]
[Round "2.8"]
[White "Voigt, Martin"]
[Black "Wong, Gengchun"]
[Result "1/2-1/2"]
[Annotator "RC"]
[ECO "B51"]
[WhiteElo "2316"]
[BlackElo "2295"]
[PlyCount "74"]
[EventDate "2024.09.27"]
[EventType "team-tourn"]
[EventCountry "GER"]
[SourceTitle "playchess.com"]
[Source "ChessBase"]
[SourceQuality "1"]
[WhiteTeam "St. Pauli"]
[BlackTeam "TU Dresden"]
[TimeControl "40/5400+30:1800+30"]

1. e4 {[%emt 0:00:03]} c5 {[%emt 0:00:04]} 2. Nf3 {[%emt 0:00:07]} d6 {[%emt 0:00:06]} 3. Bb5+ {[%emt 0:00:06]} Nd7 {[%emt 0:00:32]} 4. d4 {[%emt 0:00:11]} cxd4 {[%emt 0:00:05]} 5. Qxd4 {[%emt 0:00:07]} a6 {[%emt 0:00:07]} 6. Bxd7+ {[%emt 0:00:18]} Bxd7 {[%emt 0:00:05]} 7. Nc3 {[%emt 0:00:20]} e5 {[%emt 0:00:58]} 8. Qd3 {[%emt 0:00:12]} Rc8 {[%emt 0:00:16]} 9. O-O {[%emt 0:03:08]} h6 {[%emt 0:00:32]} 10. a4 {[%emt 0:01:54]} Qc7 {[%emt 0:05:25]} 11. Nd2 {[%emt 0:02:47]} Nf6 {[%emt 0:00:31]} 12. Rd1 {[%emt 0:00:35]} Bg4 {[%emt 0:00:33]} 13. f3 {[%emt 0:00:18]} Be6 {[%emt 0:00:07]} 14. Nf1 {[%emt 0:00:31]} d5 {[%emt 0:28:26]} 15. exd5 {[%emt 0:05:02]} Rd8 {[%emt 0:01:01]} 16. dxe6 {[%emt 0:18:16]} Rxd3 {[%emt 0:00:33]} 17. exf7+ {[%emt 0:00:08]} Qxf7 {[%emt 0:09:37]} 18. Rxd3 {[%emt 0:00:27]} Bb4 {[%emt 0:00:07]} 19. Ng3 {[%emt 0:04:50]} O-O {[%emt 0:04:29]} 20. Be3 {[%emt 0:08:16]} Rc8 {[%emt 0:03:22]} 21. Bd2 {[%emt 0:10:11]} Qc7 {[%emt 0:10:40]} 22. Kh1 {[%emt 0:08:13]} Rd8 {[%emt 0:07:42]} 23. Rxd8+ {[%emt 0:00:38]} Qxd8 {[%emt 0:00:03]} 24. Be1 {[%emt 0:00:25]} Qa5 {[%emt 0:09:43]} 25. h3 {[%emt 0:01:36]} Nd5 {[%emt 0:02:36]} 26. Nxd5 {[%emt 0:10:21]} Bxe1 {[%emt 0:00:04]} 27. Nf5 {[%emt 0:01:15]} Qd2 {[%emt 0:05:14]} 28. c4 {[%emt 0:03:47]} Bf2 {[%emt 0:00:47]} 29. b4 {[%emt 0:00:45]} g6 {[%emt 0:02:15]} 30. Nd6 {[%emt 0:00:55]} Bd4 {[%emt 0:01:01]} 31. Rf1 {[%emt 0:02:19]} b6 {[%emt 0:02:44]} 32. Kh2 {[%emt 0:01:26]} Qa2 {[%emt 0:02:23]} 33. Re1 {[%emt 0:08:57]} Qf2 {[%emt 0:02:28]} 34. Rb1 {[%emt 0:00:58]} Qc2 {[%emt 0:00:27]} 35. Re1 {[%emt 0:00:28]} Qf2 {[%emt 0:01:50]} 36. Rb1 {[%emt 0:00:08]} Qc2 {[%emt 0:00:30]} 37. Re1 {[%emt 0:00:06]} Qf2 {[%emt 0:00:59]} 1/2-1/2

[Event "German Bundesliga 2024-25"]
[Site "Germany"]
[Date "2024.10.06"]
[Round "2.9"]
[White "Narayanan S L"]
[Black "Kasimdzhanov, Rustam"]
[Result "1-0"]
[Annotator "TA"]
[ECO "D61"]
[WhiteElo "2640"]
[BlackElo "2685"]
[PlyCount "80"]
[EventDate "2024.09.27"]
[EventType "team-tourn"]
[EventCountry "GER"]
[SourceTitle "playchess.com"]
[Source "ChessBase"]
[SourceQuality "1"]
[WhiteTeam "Deggendorf"]
[BlackTeam "Baden-Baden"]
[TimeControl "40/5400+30:1800+30"]

{[%evp 16,80,21,11,33,31,36,39,26,43,31,21,35,20,46,38,39,23,37,0,25,27,22,17,27,28,22,25,16,12,24,17,34,31,43,33,52,47,50,57,49,0,84,83,71,67,138,150,143,86,92,95,96,96,131,4,6,0,0,0,4,0,40,47,200,195,29998]} 1. d4 {[%emt 0:00:03]} Nf6 {[%emt 0:00:06]} 2. c4 {[%emt 0:00:09]} e6 {[%emt 0:00:05]} 3. Nf3 {[%emt 0:00:12]} d5 {[%emt 0:00:17]} 4. Nc3 {[%emt 0:00:09]} c6 {[%emt 0:00:05]} 5. Bg5 {[%emt 0:00:23]} h6 {[%emt 0:00:34]} 6. Bh4 {[%emt 0:00:07]} Be7 {[%emt 0:01:55]} 7. e3 {[%emt 0:00:20]} Nbd7 {[%emt 0:00:58]} 8. Qc2 {[%emt 0:00:14]} O-O {[%emt 0:01:35]} 9. a3 {[%emt 0:00:07]} a5 {[%emt 0:04:10]} 10. cxd5 {[%emt 0:04:49]} exd5 {[%emt 0:07:44]} 11. Bd3 {[%emt 0:00:26]} Nh5 {[%emt 0:07:08] White is slightly better.} 12. Bxe7 {[%emt 0:00:37]} Qxe7 {[%emt 0:00:04]} 13. O-O {[%emt 0:01:29]} Nhf6 {[%emt 0:08:56]} 14. Rae1 {[%emt 0:00:55]} Qd6 {[%emt 0:03:10]} 15. Nh4 {[%emt 0:08:42]} Nb6 {[%emt 0:06:22]} 16. Ne2 {[%emt 0:14:27]} Be6 {[%emt 0:13:44]} 17. Ng3 {[%emt 0:12:02]} Rfc8 {[%emt 0:09:26]} 18. Ngf5 {[%emt 0:17:43]} Qf8 {[%emt 0:02:20]} 19. Qc5 $1 {[%emt 0:02:11]} Bxf5 {[%emt 0:02:37]} 20. Nxf5 {[%emt 0:00:27]} Nbd7 {[%emt 0:01:05]} 21. Qc2 {[%emt 0:03:45]} c5 {[%emt 0:03:10]} 22. dxc5 {[%emt 0:02:21]} Nxc5 {[%emt 0:03:55]} 23. Rd1 {[%emt 0:01:38]} Ne6 {[%emt 0:01:21]} 24. Qa4 {[%emt 0:00:39]} Nc5 {[%emt 0:11:31]} 25. Qh4 {[%emt 0:02:11][%cal Of5h6] aiming for Nxh6+!} Rc6 {[%emt 0:00:10]} 26. Bb1 {[%emt 0:12:31]} Rd8 {[%emt 0:01:02]} 27. Rc1 {[%emt 0:04:35]} Rdc8 {[%emt 0:03:51]} 28. Rfd1 {[%emt 0:00:28]} (28. Rfe1 $14) 28... Nce4 {[%emt 0:01:31]} (28... Ncd7 $11 {remains equal.} 29. Rxc6 bxc6) 29. Rxc6 $16 {[%emt 0:00:26]} Rxc6 {[%emt 0:00:03]} 30. h3 {[%emt 0:04:12]} Kh8 {[%emt 0:04:37]} (30... Re6 $14) 31. Bxe4 {[%emt 0:00:36]} dxe4 {[%emt 0:00:18]} 32. Qg3 {[%emt 0:00:13]} ({White should try} 32. Qf4) 32... g6 {[%emt 0:01:41]} 33. Nd6 {[%emt 0:00:28]} Qe7 {[%emt 0:00:43] [#] Against Qe5} 34. Qe5 $1 {[%emt 0:00:06]} Rc7 {[%emt 0:00:09] [#]} (34... Qxe5 35. Nxf7+) 35. Qf4 {[%emt 0:05:12] White has more active pieces.} ({But not} 35. Qxa5 $6 Rd7 36. Qb4 Ne8 37. Nxf7+ Qxf7 38. Rxd7 (38. Qc3+ Kh7 $17) 38... Qxd7 39. Qxe4 Kh7 $11) (35. Qxe7 $1 $16 Rxe7 36. Nc4) 35... Kg7 $11 {[%emt 0:00:49]} 36. Rd4 $36 {[%emt 0:01:17][%cal Rd6e4][%mdl 2048] Black is under pressure.} Rc1+ {[%emt 0:00:31]} 37. Kh2 {[%emt 0:00:04][%cal Rd6e4]} Rc2 {[%emt 0:00:19]} 38. b4 {[%emt 0:01:19]} axb4 {[%emt 0:00:17]} 39. axb4 {[%emt 0:00:19]} Nh5 $2 {[%emt 0:01:05]} (39... Rb2 $14) 40. Rxe4 $18 {[%emt 0:00:32]} ({Resist} 40. Qxe4 $6 Qxe4 41. Nxe4 b5 $16) 40... Qg5 $2 {[%emt 0:00:35] Weighted Error Value: White=0.15 (very precise) /Black=0.22 (precise) .  Mistake:       	White=3     	Black=4      Inaccurate:     	White=1     	Black=3      OK:         	White=10    	Black=6      Best:        	White=3     	Black=1      Strong:       	White=1     	---        Brilliant:      	White=1     	---} (40... Qf8 $18 41. Qe5+ Kg8 42. Nxb7 Qg7) 1-0

[Event "German Bundesliga 2024-25"]
[Site "Germany"]
[Date "2024.09.29"]
[Round "2.9"]
[White "Gurel, Ediz"]
[Black "Erigaisi Arjun"]
[Result "1-0"]
[Annotator "TA"]
[ECO "C64"]
[WhiteElo "2602"]
[BlackElo "2778"]
[PlyCount "149"]
[EventDate "2024.09.27"]
[EventType "team-tourn"]
[EventCountry "GER"]
[SourceTitle "playchess.com"]
[Source "ChessBase"]
[SourceQuality "1"]
[WhiteTeam "SK Kirchweyhe"]
[BlackTeam "Duesseldorfer SK"]
[TimeControl "40/5400+30:1800+30"]

{[%evp 62,149,43,0,0,0,0,0,5,0,0,0,0,0,0,0,0,0,0,0,0,0,0,0,0,0,0,0,0,0,0,0,0,0,0,0,73,0,0,0,0,0,0,0,0,-24,0,0,0,0,0,0,0,0,0,0,0,0,0,0,0,0,0,0,0,0,0,0,0,0,29960,131,29972,29975,29975,29976,29975,29976,29979,29976,29975,29976,29978,29979,29981,29980,29987,29988,29993,29989]} 1. e4 {[%emt 0:00:04]} e5 {[%emt 0:00:07]} 2. Nf3 {[%emt 0:00:11]} Nc6 {[%emt 0:00:06]} 3. Bb5 {[%emt 0:00:11]} Bc5 {[%emt 0:00:07]} 4. c3 {[%emt 0:03:16]} Nf6 {[%emt 0:00:15]} 5. d4 {[%emt 0:07:34]} exd4 {[%emt 0:00:39]} 6. e5 {[%emt 0:02:45]} Nd5 {[%emt 0:00:08]} 7. O-O {[%emt 0:03:08]} Be7 {[%emt 0:00:15]} 8. cxd4 {[%emt 0:02:33]} d6 {[%emt 0:00:27]} 9. Nc3 {[%emt 0:05:29]} Be6 {[%emt 0:00:07]} 10. Ne4 {[%emt 0:13:50]} a6 {[%emt 0:06:27]} 11. Bxc6+ {[%emt 0:02:06]} bxc6 {[%emt 0:00:06]} 12. Bg5 {[%emt 0:00:51]} O-O {[%emt 0:07:35]} 13. Rc1 {[%emt 0:03:36]} h6 {[%emt 0:00:28]} 14. Bxe7 {[%emt 0:02:40]} Nxe7 {[%emt 0:00:06]} 15. Re1 {[%emt 0:04:18]} a5 {[%emt 0:08:05]} 16. b3 {[%emt 0:03:59]} Qd7 {[%emt 0:03:56]} 17. h3 {[%emt 0:01:35]} Nd5 {[%emt 0:06:13]} 18. Nfd2 {[%emt 0:06:46]} f5 {[%emt 0:08:16]} 19. exf6 {[%emt 0:03:22]} gxf6 {[%emt 0:02:39]} 20. Qf3 {[%emt 0:01:18]} f5 {[%emt 0:03:01]} 21. Ng3 {[%emt 0:01:47]} Rf6 {[%emt 0:11:42]} 22. Nh5 {[%emt 0:03:12]} Rg6 {[%emt 0:00:06]} 23. Nf4 {[%emt 0:03:28]} Nxf4 {[%emt 0:00:06]} 24. Qxf4 {[%emt 0:00:01]} Bd5 {[%emt 0:02:59]} 25. Nf3 {[%emt 0:00:57]} Rf8 {[%emt 0:07:48]} 26. Nh4 {[%emt 0:01:04]} Re6 {[%emt 0:00:28]} 27. Rxe6 {[%emt 0:01:34]} Qxe6 {[%emt 0:00:05]} 28. Nf3 {[%emt 0:00:40]} Qf6 {[%emt 0:07:54]} 29. Re1 {[%emt 0:01:11]} Rf7 {[%emt 0:01:27]} 30. Re3 {[%emt 0:04:39]} Kf8 {[%emt 0:01:37]} 31. Kh2 {[%emt 0:02:33]} Re7 {[%emt 0:03:06]} 32. Rxe7 {[%emt 0:00:38]} (32. g4 {keeps more tension.} Rf7 33. gxf5 Qxf5 34. Qxh6+ Rg7 35. Qh8+) 32... Kxe7 {[%emt 0:00:06]} 33. Nh4 {[%emt 0:04:10]} Be4 {[%emt 0:02:50]} 34. Nf3 {[%emt 0:04:22]} Kd7 {[%emt 0:05:48]} 35. Qe3 {[%emt 0:01:47]} Bd5 {[%emt 0:01:55]} 36. Ne1 {[%emt 0:01:46]} f4 {[%emt 0:00:34]} 37. Qd2 {[%emt 0:00:06]} h5 {[%emt 0:02:12]} 38. f3 {[%emt 0:01:53]} h4 {[%emt 0:01:55]} 39. Kg1 {[%emt 0:00:25]} Bf7 {[%emt 0:01:02]} 40. Kh2 {[%emt 0:03:08]} Bd5 {[%emt 0:04:16]} 41. Kg1 {[%emt 0:30:32]} Kc8 {[%emt 0:31:07]} 42. Nc2 {[%emt 0:00:00]} Kb7 {[%emt 0:00:00]} 43. Kh1 {[%emt 0:00:00]} Ka6 {[%emt 0:00:00]} 44. Na3 {[%emt 0:00:00]} Qf5 {[%emt 0:00:00]} 45. Kh2 {[%emt 0:00:00]} Be6 {[%emt 0:00:00]} 46. Qf2 {[%emt 0:00:00]} Qf6 {[%emt 0:00:00]} 47. Qd2 {[%emt 0:00:00]} Bf7 {[%emt 0:00:00]} 48. Nb1 {[%emt 0:00:00]} c5 {[%emt 0:00:00]} (48... Bg6 $11 {remains equal.}) 49. Qe2+ {[%emt 0:00:00]} (49. Qd3+ $16 c4 50. bxc4) 49... c4 $1 $11 {[%emt 0:00:00]} 50. Na3 {[%emt 0:00:00]} Qe6 {[%emt 0:00:00]} 51. Qc2 {[%emt 0:00:00]} (51. Qxc4+ Qxc4 52. bxc4 (52. Nxc4 $2 Bxc4 53. bxc4 d5 $19) 52... Kb6 $19) 51... d5 {[%emt 0:00:00]} 52. bxc4 {[%emt 0:00:00]} dxc4 {[%emt 0:00:00]} 53. Qa4 {[%emt 0:00:10]} c6 {[%emt 0:00:00]} 54. Nb1 $1 {[%emt 0:00:58]} Qg6 {[%emt 0:02:04]} 55. Nc3 $1 {[%emt 0:00:43]} Bd5 {[%emt 0:02:44]} 56. Nxd5 {[%emt 0:00:57]} cxd5 {[%emt 0:00:05]} 57. Qd7 {[%emt 0:00:02]} Kb6 {[%emt 0:00:50]} 58. Qxd5 {[%emt 0:01:33]} Qc6 {[%emt 0:00:35]} 59. Qd8+ {[%emt 0:00:04]} Qc7 {[%emt 0:00:09]} 60. Qf6+ {[%emt 0:00:07]} Kb5 {[%emt 0:00:31]} 61. Qf5+ {[%emt 0:02:22]} (61. Qxh4 c3 62. Qg5+ Kb4 $19) 61... Kb4 {[%emt 0:00:05]} 62. Qf8+ {[%emt 0:00:37]} Kb5 $1 {[%emt 0:02:20]} 63. d5 {[%emt 0:02:19]} Qd7 $1 {[%emt 0:00:46]} 64. a4+ {[%emt 0:01:17]} Kxa4 {[%emt 0:00:06]} 65. Qc5 {[%emt 0:00:03]} Kb3 $2 {[%emt 0:01:44][%mdl 8192] [#]} (65... Qb5 $11 66. Qd4 (66. Qxb5+ Kxb5 67. d6 Kc6 68. Kg1 c3 69. Kf2 c2 70. d7 Kxd7 71. Ke2 c1=Q 72. Kd3 Qe3+ 73. Kc2 a4 74. Kb2 Qb3+ 75. Kc1 a3 76. g3 a2 77. gxf4 a1=Q+ 78. Kd2 Qad1#) 66... Kb3) 66. d6 $2 {[%emt 0:00:19]} (66. Qb6+ $1 {mates} Ka3 67. Qxa5+ Kb3 68. Qb6+ Ka3 69. d6 Qg7 70. Qc5+ Kb3 71. Qb5+ Ka3 72. Qxc4 Qg3+ 73. Kg1 Qe1+ 74. Qf1) 66... Qg7 $2 {[%emt 0:01:22][%mdl 8192]} (66... c3 $16) 67. Qb5+ {[%emt 0:00:17]} Kc3 {[%emt 0:00:22]} 68. Qxa5+ {[%emt 0:00:05]} Kb3 {[%emt 0:00:25]} 69. Qb5+ {[%emt 0:00:17]} Kc3 {[%emt 0:00:07]} 70. Kh1 {[%emt 0:00:31]} Qd4 {[%emt 0:01:44]} 71. d7 {[%emt 0:00:17]} Kd3 {[%emt 0:00:33]} 72. Qc6 {[%emt 0:00:55]} Kd2 {[%emt 0:01:01]} 73. Qc7 {[%emt 0:00:27]} Ke1 {[%emt 0:00:30]} 74. d8=Q {[%emt 0:00:20]} Qa1 {[%emt 0:00:11]} 75. Qa5+ {[%emt 0:00:07]} (75. Qxf4 {gets mated.} Kf2+) 1-0

[Event "German Bundesliga 2024-25"]
[Site "Germany"]
[Date "2024.10.06"]
[Round "2.9"]
[White "Kazakouski, Valery"]
[Black "McShane, Luke J"]
[Result "1/2-1/2"]
[Annotator "TA"]
[ECO "C54"]
[WhiteElo "2557"]
[BlackElo "2609"]
[PlyCount "102"]
[EventDate "2024.09.27"]
[EventType "team-tourn"]
[EventCountry "GER"]
[SourceTitle "playchess.com"]
[Source "ChessBase"]
[SourceQuality "1"]
[WhiteTeam "Bad Mergentheim"]
[BlackTeam "Werder Bremen"]
[TimeControl "40/5400+30:1800+30"]

{[%evp 11,102,12,10,4,0,0,0,0,0,0,0,0,0,0,0,0,13,0,13,0,9,0,35,0,0,-23,-37,-26,-27,-24,-12,-16,-20,-14,-4,-9,-12,-21,-2,-15,-13,-50,-24,-25,-23,-27,0,-9,0,0,0,0,0,0,0,-24,-8,-22,-25,-18,-30,-14,-32,-28,0,0,0,0,0,-1,-4,-4,-5,-12,-21,-3,0,0,0,0,0,0,0,0,0,0,0,0,0,0,0,0,0]} 1. e4 {[%emt 0:00:05]} e5 {[%emt 0:00:04]} 2. Nf3 {[%emt 0:00:09]} Nc6 {[%emt 0:00:04]} 3. Bc4 {[%emt 0:00:08]} Bc5 {[%emt 0:00:05]} 4. c3 {[%emt 0:00:07]} Nf6 {[%emt 0:00:06]} 5. d4 {[%emt 0:00:11]} exd4 {[%emt 0:00:08]} 6. e5 {[%emt 0:00:08]} d5 {[%emt 0:00:34]} 7. Be2 {[%emt 0:00:13]} Ne4 {[%emt 0:00:18][%cal Od4d3] [#] Strongly threatening ...d3!} 8. cxd4 {[%emt 0:00:08]} Bb6 {[%emt 0:00:25]} 9. Nc3 {[%emt 0:00:18]} O-O {[%emt 0:00:29]} 10. O-O {[%emt 0:01:54]} Be6 {[%emt 0:01:44]} 11. Be3 {[%emt 0:01:56]} f6 {[%emt 0:02:42]} 12. exf6 {[%emt 0:04:36]} Nxf6 {[%emt 0:00:56]} 13. h3 {[%emt 0:02:26]} Ne7 {[%emt 0:02:25]} 14. Bd3 {[%emt 0:04:10]} c6 {[%emt 0:06:04]} 15. Qc2 {[%emt 0:06:34]} Qc8 $1 {[%emt 0:02:41][%cal Oe6h3]} 16. Ne2 {[%emt 0:12:22]} Ne4 {[%emt 0:24:23][%cal Oe6h3] Prevents Ng3.} 17. Ng3 {[%emt 0:09:48]} Bxh3 {[%emt 0:23:40]} 18. Bxe4 {[%emt 0:08:08]} dxe4 {[%emt 0:00:48]} 19. Qxe4 {[%emt 0:00:38] [#]} Qe6 {[%emt 0:02:51]} 20. Ng5 {[%emt 0:11:44][%cal Bf3g5,Bg5e4,Be4c5][%mdl 32]} (20. Rfe1 Qxe4) 20... Qxe4 {[%emt 0:00:23]} 21. N5xe4 {[%emt 0:00:29] Excellent horsemanship.} Bf5 {[%emt 0:07:17]} 22. Nc5 {[%emt 0:01:42]} Bg6 {[%emt 0:04:38]} 23. Rfe1 {[%emt 0:04:21]} Nd5 {[%emt 0:02:15]} 24. Bd2 {[%emt 0:00:23]} Rf7 {[%emt 0:00:50]} 25. a3 {[%emt 0:05:38]} h6 {[%emt 0:00:58]} 26. Ne2 {[%emt 0:07:41]} Rd8 {[%emt 0:01:28]} 27. Rac1 {[%emt 0:02:25]} Kh7 {[%emt 0:00:56]} 28. b4 {[%emt 0:00:30]} Bxc5 {[%emt 0:11:48]} 29. dxc5 {[%emt 0:01:19]} Rfd7 {[%emt 0:00:09]} 30. Nf4 {[%emt 0:01:02]} Nc7 {[%emt 0:00:48]} 31. Bc3 {[%emt 0:04:45]} Nb5 {[%emt 0:00:45]} 32. Bb2 {[%emt 0:00:06]} Bf7 {[%emt 0:01:55]} 33. Re3 {[%emt 0:02:15]} g5 {[%emt 0:01:06]} 34. Ne2 {[%emt 0:01:11]} Rd2 {[%emt 0:00:25]} 35. Bf6 {[%emt 0:02:20]} R8d7 {[%emt 0:00:42]} 36. a4 {[%emt 0:01:49]} Nc7 {[%emt 0:00:02] Threatens to win with ...Nd5.} 37. Nc3 {[%emt 0:00:10]} Nd5 {[%emt 0:01:04]} 38. Nxd5 {[%emt 0:00:24] The position is equal.} Bxd5 {[%emt 0:00:50]} 39. Bc3 {[%emt 0:01:48]} Ra2 {[%emt 0:00:04]} 40. Ra1 {[%emt 0:00:55]} Rc2 {[%emt 0:00:59]} 41. Rae1 {[%emt 0:31:14]} Kg6 {[%emt 0:06:48]} 42. R1e2 {[%emt 0:00:00]} Rxe2 {[%emt 0:03:38]} 43. Rxe2 $11 {[%emt 0:00:00][%mdl 4096] Endgame. KRB-KRB} Bb3 {[%emt 0:01:27]} 44. a5 {[%emt 0:00:00]} h5 {[%emt 0:01:20]} 45. Rd2 {[%emt 0:00:00]} Bd5 {[%emt 0:02:08]} 46. f3 {[%emt 0:00:00]} a6 {[%emt 0:03:30]} 47. Re2 {[%emt 0:00:00]} Rf7 {[%emt 0:00:06]} 48. Bd2 {[%emt 0:00:00]} Kf5 {[%emt 0:03:23]} 49. Kf2 {[%emt 0:00:00]} g4 {[%emt 0:01:51]} 50. fxg4+ {[%emt 0:00:00]} Kxg4+ {[%emt 0:00:06]} 51. Kg1 {[%emt 0:00:00]} Kf5 {[%emt 0:03:31] Weighted Error Value: White=0.05 (flawless) /Black=0.04 (flawless) .  Inaccurate:     	White=2     	Black=3      OK:         	White=22    	Black=22     Best:        	White=1     	Black=1      Strong:       	---       	Black=1} 1/2-1/2

[Event "German Bundesliga 2024-25"]
[Site "Germany"]
[Date "2024.10.06"]
[Round "2.10"]
[White "Deac, Bogdan-Daniel"]
[Black "Ghosh, Diptayan"]
[Result "1/2-1/2"]
[Annotator "TA"]
[ECO "D27"]
[WhiteElo "2691"]
[BlackElo "2566"]
[PlyCount "59"]
[EventDate "2024.09.27"]
[EventType "team-tourn"]
[EventCountry "GER"]
[SourceTitle "playchess.com"]
[Source "ChessBase"]
[SourceQuality "1"]
[WhiteTeam "Baden-Baden"]
[BlackTeam "Deggendorf"]
[TimeControl "40/5400+30:1800+30"]

{[%evp 17,59,16,19,18,19,24,22,14,23,13,21,13,12,15,9,7,31,9,9,12,9,10,7,15,14,11,10,0,3,6,7,0,0,0,0,0,14,0,7,4,8,10,22,0]} 1. Nf3 {[%emt 0:00:03]} d5 {[%emt 0:00:26]} 2. d4 {[%emt 0:00:03]} Nf6 {[%emt 0:00:09]} 3. c4 {[%emt 0:00:04]} dxc4 {[%emt 0:00:35]} 4. e3 {[%emt 0:00:06]} e6 {[%emt 0:00:04]} 5. Bxc4 {[%emt 0:00:19]} c5 {[%emt 0:00:04]} 6. O-O {[%emt 0:00:14]} Nc6 {[%emt 0:00:11]} 7. Nc3 {[%emt 0:00:43]} a6 {[%emt 0:00:05]} 8. dxc5 {[%emt 0:05:36]} Qxd1 {[%emt 0:02:18]} 9. Rxd1 {[%emt 0:00:17]} Bxc5 {[%emt 0:00:05]} 10. Bd2 {[%emt 0:13:25][%cal Bc1d2,Bd2e1,Be1a5][%mdl 32]} O-O {[%emt 0:02:37]} 11. Rac1 {[%emt 0:02:24]} Bd7 {[%emt 0:01:04]} 12. Be2 {[%emt 0:00:23]} Ba7 {[%emt 0:10:27]} 13. Be1 {[%emt 0:08:18]} Rfd8 {[%emt 0:02:49]} 14. Na4 {[%emt 0:00:43]} Nd4 {[%emt 0:21:20]} 15. Nxd4 {[%emt 0:03:52]} Bxa4 {[%emt 0:00:17]} 16. b3 {[%emt 0:00:04]} Be8 {[%emt 0:02:22]} 17. Ba5 {[%emt 0:01:28]} Rd5 {[%emt 0:06:25] The position is equal.} 18. Bc3 {[%emt 0:00:23]} Rc8 {[%emt 0:04:01]} 19. Bb2 {[%emt 0:00:33]} Rxc1 {[%emt 0:02:01]} 20. Rxc1 {[%emt 0:00:22]} Rc5 {[%emt 0:00:20]} 21. Rxc5 {[%emt 0:01:01]} Bxc5 {[%emt 0:00:05]} 22. Bf3 {[%emt 0:00:05]} b6 {[%emt 0:03:22]} 23. Kf1 {[%emt 0:11:06]} Kf8 {[%emt 0:01:42]} 24. a3 {[%emt 0:01:29]} a5 {[%emt 0:02:06]} 25. Bb7 {[%emt 0:01:20]} Bd6 {[%emt 0:06:44]} 26. a4 {[%emt 0:03:49]} Bd7 {[%emt 0:04:50]} 27. Nb5 {[%emt 0:08:19]} Bc5 {[%emt 0:01:27]} (27... Bxh2 $2 {too greedy.} 28. g3 $18) 28. Ke2 {[%emt 0:01:07]} Ke7 {[%emt 0:01:28]} 29. h3 {[%emt 0:00:57]} Ne8 {[%emt 0:03:46]} 30. Be4 {[%emt 0:00:37] Not much happened in this game.   Weighted Error Value: White=0.03 (flawless) /Black=0.03 (flawless) .  OK:         	White=11    	Black=10} 1/2-1/2